bitfinex-derivatives/quotes_BTCF0:USTF0_20250710
["timestamp","ask_amount","ask_price","bid_price","bid_amount"]
[1752177240605,1.09070871,113320.0,113310.0,0.2471402]
[1752177240802,1.12454871,113320.0,113310.0,0.2230402]
[1752177241006,1.15774871,113320.0,113310.0,0.2230402]
[1752177241203,1.15774871,113320.0,113310.0,0.2471402]
[1752177241402,1.09134871,113320.0,113310.0,0.2471402]
[1752177242204,1.09134871,113320.0,113310.0,0.6079402]
[1752177242406,1.09134871,113320.0,113310.0,0.2471402]
[1752177243007,1.09130871,113320.0,113310.0,0.2471402]
[1752177244101,1.09130871,113320.0,113310.0,0.6079402]
[1752177244406,1.09130871,113320.0,113310.0,0.2471402]
[1752177244606,1.12370871,113320.0,113310.0,0.2471402]
[1752177244802,1.12370871,113320.0,113310.0,0.2230402]
[1752177245200,1.15680871,113320.0,113310.0,0.2471402]
[1752177246403,0.55188871,113320.0,113310.0,0.6079402]
[1752177246607,1.12366871,113320.0,113310.0,0.6079402]
[1752177246904,1.12366871,113320.0,113310.0,0.6408402]
[1752177247104,0.68205,113320.0,113310.0,0.6408402]
[1752177247310,1.09126871,113320.0,113310.0,0.6408402]
[1752177247705,0.48638871,113320.0,113310.0,0.6408402]
[1752177247911,1.09126871,113320.0,113310.0,0.6408402]
[1752177248411,1.11086138,113320.0,113310.0,0.6408402]
[1752177248906,0.06436267,113320.0,113310.0,0.6408402]
[1752177249112,0.66860267,113320.0,113310.0,0.6408402]
[1752177250316,0.93385668,113320.0,113310.0,0.6408402]
[1752177250614,0.32897668,113320.0,113310.0,0.6408402]
[1752177250805,0.93381668,113320.0,113310.0,0.6408402]
[1752177251004,0.93445668,113320.0,113310.0,0.6408402]
[1752177252613,0.66920267,113320.0,113310.0,0.6408402]
[1752177252811,0.93345668,113320.0,113310.0,0.6418402]
[1752177253809,0.32861668,113320.0,113310.0,0.6418402]
[1752177254108,0.66656267,113320.0,113310.0,0.6418402]
[1752177254314,0.66656267,113320.0,113310.0,0.6428402]
[1752177254617,0.93181668,113320.0,113310.0,0.6428402]
[1752177254912,0.93245668,113320.0,113310.0,0.6428402]
[1752177255108,1.10882128,113320.0,113310.0,0.6428402]
[1752177255809,0.93245668,113320.0,113310.0,0.6428402]
[1752177256005,1.10882128,113320.0,113310.0,0.6428402]
[1752177256717,0.93245668,113320.0,113310.0,0.6428402]
[1752177257719,0.06236267,113320.0,113310.0,0.6428402]
[1752177258019,0.06172267,113320.0,113310.0,0.90809421]
[1752177258517,0.06172267,113320.0,113310.0,1.51289421]
[1752177259521,0.06172267,113320.0,113310.0,1.2476402]
[1752177260520,0.06172267,113320.0,113310.0,1.31900409]
[1752177262424,0.06172267,113320.0,113310.0,1.5842581]
[1752177262624,0.02159267,113320.0,113310.0,1.5842581]
[1752177262818,0.02159267,113320.0,113310.0,1.31900409]
[1752177263024,0.04507267,113320.0,113310.0,1.31900409]
[1752177263326,0.06079267,113320.0,113310.0,1.31900409]
[1752177263728,0.02159267,113320.0,113310.0,1.5842581]
[1752177268741,0.02159267,113320.0,113310.0,1.31900409]
[1752177269042,0.02159267,113320.0,113310.0,1.5842581]
[1752177280338,0.04723457,113350.0,113330.0,0.11574]
[1752177280547,0.00064,113350.0,113340.0,2.50124255]
[1752177280744,0.09597457,113360.0,113350.0,0.2160784]
[1752177280945,0.0335,113360.0,113350.0,0.87223241]
[1752177281342,0.002,113360.0,113350.0,0.90243241]
[1752177282351,0.0337,113360.0,113350.0,0.90243241]
[1752177282542,0.0337,113360.0,113350.0,0.91142151]
[1752177282855,0.0357,113360.0,113350.0,0.91142151]
[1752177283357,0.0347,113360.0,113350.0,0.91142151]
[1752177284449,0.04994,113360.0,113350.0,0.91142151]
[1752177285247,0.04994,113360.0,113350.0,0.6159675]
[1752177285648,0.04994,113360.0,113350.0,0.6119675]
[1752177287148,0.04994,113360.0,113350.0,0.87722151]
[1752177287844,0.04994,113360.0,113350.0,0.97722151]
[1752177288044,0.0347,113360.0,113350.0,0.97722151]
[1752177288357,0.003,113360.0,113350.0,1.00842151]
[1752177290251,0.003,113360.0,113350.0,0.7431675]
[1752177290452,0.003,113360.0,113350.0,1.00842151]
[1752177290955,0.002,113360.0,113350.0,1.00942151]
[1752177291453,0.002,113360.0,113350.0,0.90942151]
[1752177291753,0.002,113360.0,113350.0,0.91042151]
[1752177291955,0.01724,113360.0,113350.0,0.6139675]
[1752177292154,0.10659,113360.0,113350.0,0.6129675]
[1752177292343,0.10659,113360.0,113350.0,0.6139675]
[1752177292546,0.56753748,113360.0,113350.0,0.5838675]
[1752177292858,0.56753748,113360.0,113350.0,1.1796384]
[1752177293155,0.56817748,113360.0,113350.0,1.1796384]
[1752177293350,0.56817748,113360.0,113350.0,0.5748784]
[1752177293557,0.56818072,113360.0,113350.0,0.5351184]
[1752177295056,0.56818072,113360.0,113350.0,0.5591384]
[1752177295560,0.56818072,113360.0,113350.0,0.5748784]
[1752177299156,1.17318072,113360.0,113350.0,0.5748784]
[1752177300158,0.12662421,113360.0,113350.0,0.5748784]
[1752177300365,0.06973421,113360.0,113350.0,1.44489241]
[1752177300661,0.06973421,113360.0,113350.0,1.2100384]
[1752177301952,0.05034,113360.0,113350.0,1.2100384]
[1752177302263,0.53519196,113360.0,113350.0,1.2100384]
[1752177302458,0.39148936,113360.0,113350.0,1.2100384]
[1752177302653,0.39148936,113360.0,113350.0,0.6052784]
[1752177302852,0.56779186,113360.0,113350.0,0.6052784]
[1752177303158,0.39148936,113360.0,113350.0,0.6052784]
[1752177303559,0.39212936,113360.0,113350.0,0.6052784]
[1752177303753,0.56843186,113360.0,113350.0,0.6052784]
[1752177303958,0.56843186,113360.0,113350.0,0.5748784]
[1752177306362,0.30317785,113360.0,113350.0,0.5748784]
[1752177306570,0.56779186,113360.0,113350.0,0.6077784]
[1752177309569,0.56843186,113360.0,113350.0,0.6077784]
[1752177311572,0.30317785,113360.0,113350.0,0.6077784]
[1752177311871,0.56779186,113360.0,113350.0,0.6077784]
[1752177312070,0.53583186,113360.0,113350.0,0.6077784]
[1752177312373,0.35952936,113360.0,113350.0,0.6077784]
[1752177312573,0.35952936,113360.0,113350.0,0.6385784]
[1752177312775,0.09427535,113360.0,113350.0,0.6385784]
[1752177313072,0.09363535,113360.0,113350.0,0.6385784]
[1752177314668,0.02144535,113360.0,113350.0,0.90383241]
[1752177314972,5e-08,113360.0,113350.0,1.00383241]
[1752177315472,5e-08,113360.0,113350.0,0.7385784]
[1752177315661,5e-08,113360.0,113350.0,1.00383241]
[1752177316570,5e-08,113360.0,113350.0,1.0207926]
[1752177321769,5e-08,113370.0,113360.0,0.3176829]
[1752177321963,5e-08,113370.0,113360.0,2.21587691]
[1752177322766,0.0322,113390.0,113360.0,2.21587691]
[1752177322963,0.59134931,113400.0,113390.0,0.2176358]
[1752177323179,0.59134931,113400.0,113390.0,0.2166358]
[1752177323473,0.59198931,113400.0,113390.0,0.2485358]
[1752177324470,0.59298931,113400.0,113390.0,0.2485358]
[1752177325375,0.59298931,113400.0,113390.0,0.6093358]
[1752177325675,0.60475263,113400.0,113390.0,0.6093358]
[1752177326774,0.34267401,113400.0,113390.0,0.6093358]
[1752177326974,0.02172,113400.0,113390.0,0.6093358]
[1752177327277,0.006,113400.0,113390.0,0.923753]
[1752177327478,0.006,113400.0,113390.0,0.65849899]
[1752177327679,0.006,113400.0,113390.0,0.72970009]
[1752177328680,0.006,113400.0,113390.0,0.73070009]
[1752177331182,0.006,113400.0,113390.0,0.9959541]
[1752177331972,0.004,113400.0,113390.0,0.9959541]
[1752177332376,0.003,113400.0,113390.0,0.9959541]
[1752177332577,0.003,113400.0,113390.0,0.9969541]
[1752177333874,0.002,113400.0,113390.0,0.9969541]
[1752177334187,0.002,113400.0,113390.0,0.73170009]
[1752177334379,0.002,113400.0,113390.0,0.9969541]
[1752177336685,0.002,113400.0,113390.0,1.0999541]
[1752177337079,0.002,113400.0,113390.0,1.1009541]
[1752177337595,0.26725401,113400.0,113390.0,0.73570009]
[1752177338089,0.002,113400.0,113390.0,0.73170009]
[1752177338475,0.002,113400.0,113390.0,0.73070009]
[1752177340090,0.002,113400.0,113390.0,0.9959541]
[1752177340282,0.002,113400.0,113390.0,0.9969541]
[1752177340482,0.002,113400.0,113390.0,0.73170009]
[1752177341184,0.002,113400.0,113390.0,0.73370009]
[1752177342279,0.033,113400.0,113390.0,0.73370009]
[1752177342485,0.51298941,113400.0,113390.0,1.30622009]
[1752177342784,0.54418941,113400.0,113390.0,1.27432009]
[1752177342985,0.54482941,113400.0,113390.0,0.66920009]
[1752177343187,0.81008342,113400.0,113390.0,0.59799899]
[1752177344079,0.54482941,113400.0,113390.0,0.59799899]
[1752177345184,0.54482911,113400.0,113390.0,0.59799899]
[1752177350886,0.54482901,113400.0,113390.0,0.59799899]
[1752177351888,0.81008302,113400.0,113390.0,0.59799899]
[1752177352290,0.54482901,113400.0,113390.0,0.59799899]
[1752177352494,0.54482901,113400.0,113390.0,0.62174968]
[1752177353085,0.81008302,113400.0,113390.0,0.59799899]
[1752177353482,0.81008302,113400.0,113390.0,0.62174968]
[1752177355496,0.81008302,113400.0,113390.0,0.59799899]
[1752177355799,0.81008302,113400.0,113390.0,0.59699899]
[1752177356194,0.81008302,113400.0,113390.0,0.59499899]
[1752177356396,0.81008302,113400.0,113390.0,0.61874968]
[1752177356690,0.54482901,113400.0,113390.0,0.61874968]
[1752177356890,1.15078901,113400.0,113390.0,0.61874968]
[1752177359893,1.15078901,113400.0,113390.0,0.60218649]
[1752177360108,1.15078901,113400.0,113390.0,0.24138649]
[1752177360997,1.15178901,113400.0,113390.0,0.24138649]
[1752177361499,1.15178901,113400.0,113390.0,0.2176358]
[1752177361689,1.15178901,113400.0,113390.0,0.24138649]
[1752177361891,0.886535,113400.0,113390.0,0.2176358]
[1752177362089,1.15178901,113400.0,113390.0,0.2176358]
[1752177362294,1.15178901,113400.0,113390.0,0.5784358]
[1752177362494,1.15378901,113400.0,113390.0,0.5784358]
[1752177363392,1.15178901,113400.0,113390.0,0.5784358]
[1752177363595,0.54782901,113400.0,113390.0,0.5784358]
[1752177363794,1.15262901,113400.0,113390.0,0.5784358]
[1752177363996,1.15362901,113400.0,113390.0,0.5784358]
[1752177364696,1.15262901,113400.0,113390.0,0.5794358]
[1752177364892,0.54682901,113400.0,113390.0,0.5794358]
[1752177365191,1.15258901,113400.0,113390.0,0.5794358]
[1752177365395,0.07214,113400.0,113390.0,0.60318649]
[1752177365703,0.07214,113400.0,113390.0,0.89995314]
[1752177365704,0.01708,113400.0,113390.0,0.89995314]
[1752177366004,0.01708,113400.0,113390.0,2.15207017]
[1752177366498,0.01708,113400.0,113390.0,1.88681616]
[1752177366499,0.002,113400.0,113390.0,1.88681616]
[1752177369200,0.002,113400.0,113390.0,1.9035759]
[1752177371406,0.002,113400.0,113390.0,1.95107089]
[1752177372209,0.002,113400.0,113390.0,1.9035759]
[1752177373096,0.002,113400.0,113390.0,1.94373706]
[1752177373300,0.002,113400.0,113390.0,2.30899107]
[1752177374411,0.002,113400.0,113390.0,2.30902626]
[1752177375301,0.002,113400.0,113390.0,2.31302626]
[1752177375911,0.002,113400.0,113390.0,2.31502626]
[1752177382915,0.002,113410.0,113400.0,0.1918051]
[1752177383115,0.002,113410.0,113400.0,0.95816829]
[1752177383720,0.002,113410.0,113400.0,1.05816829]
[1752177384017,0.002,113410.0,113400.0,1.05916829]
[1752177384619,0.002,113410.0,113400.0,0.79391428]
[1752177384815,0.002,113410.0,113400.0,1.06316829]
[1752177385412,0.002,113410.0,113400.0,1.06216829]
[1752177385613,0.002,113410.0,113400.0,1.06416829]
[1752177387717,0.0627,113430.0,113420.0,0.1762052]
[1752177387922,0.04098,113440.0,113430.0,0.2145597]
[1752177388109,0.04781,113440.0,113430.0,0.59960623]
[1752177388311,0.04781,113440.0,113430.0,0.66270623]
[1752177388824,0.04781,113440.0,113430.0,0.73289124]
[1752177389123,0.04781,113440.0,113430.0,0.73189124]
[1752177389820,0.04881,113440.0,113430.0,0.73189124]
[1752177391141,0.2485528,113440.0,113430.0,0.69899124]
[1752177391342,0.54380681,113440.0,113430.0,0.69899124]
[1752177391941,0.54380781,113440.0,113430.0,0.69899124]
[1752177392138,0.36763401,113440.0,113430.0,0.69899124]
[1752177392332,0.54380781,113440.0,113430.0,0.69899124]
[1752177392830,0.36763401,113440.0,113430.0,0.69899124]
[1752177393232,0.54380781,113440.0,113430.0,0.69899124]
[1752177393641,0.54380781,113440.0,113430.0,0.67474471]
[1752177393830,0.54444781,113440.0,113430.0,0.67474471]
[1752177395140,0.54444781,113440.0,113430.0,0.69849011]
[1752177395338,0.36827401,113440.0,113430.0,0.69849011]
[1752177395738,0.36827401,113440.0,113430.0,0.66829011]
[1752177396138,0.80970182,113440.0,113430.0,0.5991047]
[1752177396441,0.80970182,113440.0,113430.0,0.5369893]
[1752177396642,0.54444781,113440.0,113430.0,0.5369893]
[1752177397939,0.1915994,113430.0,113420.0,0.65969557]
[1752177398148,0.80797742,113430.0,113420.0,0.59191337]
[1752177398641,0.80861742,113430.0,113420.0,0.59191337]
[1752177398843,0.80861742,113430.0,113420.0,0.5753749]
[1752177400547,0.80861742,113430.0,113420.0,0.5370049]
[1752177402150,0.80861742,113430.0,113420.0,0.5380049]
[1752177402447,0.80861742,113430.0,113420.0,0.5618349]
[1752177403742,1.41517742,113430.0,113420.0,0.5782149]
[1752177403937,1.14992341,113430.0,113420.0,0.5782149]
[1752177404336,0.10192,113430.0,113420.0,0.5782149]
[1752177404548,1.14936251,113430.0,113420.0,0.5782149]
[1752177404847,1.15000251,113430.0,113420.0,0.5782149]
[1752177406154,1.41525652,113430.0,113420.0,0.5782149]
[1752177407047,1.15000251,113430.0,113420.0,0.5782149]
[1752177407349,0.97381401,113430.0,113420.0,0.5782149]
[1752177407551,1.15000251,113430.0,113420.0,0.5782149]
[1752177408149,1.41525652,113430.0,113420.0,0.5782149]
[1752177411245,1.41625652,113430.0,113420.0,0.5782149]
[1752177412551,1.41725652,113430.0,113420.0,0.5782149]
[1752177415655,1.24106802,113430.0,113420.0,0.5782149]
[1752177416154,1.24106802,113430.0,113420.0,0.60195786]
[1752177417957,1.24106802,113430.0,113420.0,0.63515786]
[1752177420151,1.41725622,113430.0,113420.0,0.09815296]
[1752177420358,1.41725622,113430.0,113420.0,0.27435676]
[1752177420558,1.24106802,113430.0,113420.0,0.27435676]
[1752177420959,1.41725622,113430.0,113420.0,0.27435676]
[1752177422657,1.41725622,113430.0,113420.0,0.2506138]
[1752177423957,1.24106802,113430.0,113420.0,0.2506138]
[1752177424155,1.24106802,113430.0,113420.0,0.63515676]
[1752177425960,1.41725622,113430.0,113420.0,0.63515676]
[1752177426160,1.24106802,113430.0,113420.0,0.63515676]
[1752177430967,1.21026802,113430.0,113420.0,0.63515676]
[1752177432168,0.67976,113430.0,113420.0,0.63515676]
[1752177432361,1.21026802,113430.0,113420.0,0.63515676]
[1752177432668,0.94501401,113430.0,113420.0,0.6424138]
[1752177432866,0.94501401,113430.0,113420.0,0.66615676]
[1752177433168,0.94501401,113430.0,113420.0,0.6424138]
[1752177433366,0.94273401,113430.0,113420.0,0.6424138]
[1752177433667,0.94273401,113430.0,113420.0,0.6434138]
[1752177434368,0.94273401,113430.0,113420.0,0.6124138]
[1752177434669,0.94373401,113430.0,113420.0,0.6114138]
[1752177434868,1.20738408,113430.0,113420.0,0.6114138]
[1752177435665,1.27212609,113430.0,113420.0,0.6124138]
[1752177436371,1.27212609,113430.0,113420.0,0.6114138]
[1752177436571,1.27312609,113430.0,113420.0,0.6114138]
[1752177436871,1.22591294,113430.0,113420.0,0.6114138]
[1752177437371,0.69700886,113430.0,113420.0,0.6114138]
[1752177437673,1.22591294,113430.0,113420.0,0.6114138]
[1752177437972,1.22591294,113430.0,113420.0,0.2506138]
[1752177438178,1.22591294,113430.0,113420.0,0.6114138]
[1752177438476,1.22491294,113430.0,113420.0,0.6114138]
[1752177438667,1.22591294,113430.0,113420.0,0.6114138]
[1752177439472,1.22491294,113430.0,113420.0,0.6124138]
[1752177439972,0.61855294,113430.0,113420.0,0.6134138]
[1752177440272,1.22499294,113430.0,113420.0,0.6134138]
[1752177442674,0.61855294,113430.0,113420.0,0.6134138]
[1752177442876,1.22499294,113430.0,113420.0,0.6134138]
[1752177443272,1.22499294,113430.0,113420.0,0.2526138]
[1752177445582,1.27220609,113430.0,113420.0,0.2526138]
[1752177445881,1.27220609,113430.0,113420.0,0.6134138]
[1752177446772,1.22499294,113430.0,113420.0,0.6134138]
[1752177448386,1.22599294,113430.0,113420.0,0.6124138]
[1752177448576,1.22699294,113430.0,113420.0,0.6114138]
[1752177450272,0.3246009,113430.0,113420.0,0.6114138]
[1752177450469,0.02052886,113430.0,113420.0,1.51420584]
[1752177450680,0.2849809,113430.0,113420.0,1.51420584]
[1752177450880,0.26645204,113430.0,113420.0,1.51420584]
[1752177451474,0.26545204,113430.0,113420.0,1.51520584]
[1752177453380,0.91112204,113440.0,113430.0,0.1761958]
[1752177453586,1.17621408,113440.0,113430.0,0.6408758]
[1752177453977,1.17621408,113440.0,113430.0,0.6388758]
[1752177454285,0.56989408,113440.0,113430.0,0.6388758]
[1752177454587,0.91448204,113440.0,113430.0,0.6388758]
[1752177454980,0.91648204,113440.0,113430.0,0.90332784]
[1752177455684,0.31044204,113440.0,113430.0,0.90332784]
[1752177455881,0.91572204,113440.0,113430.0,0.90332784]
[1752177456086,0.30980204,113440.0,113430.0,0.90332784]
[1752177456282,0.91568204,113440.0,113430.0,0.90332784]
[1752177456579,0.91632204,113440.0,113430.0,0.90332784]
[1752177457184,0.91632204,113440.0,113430.0,0.6388758]
[1752177457382,1.18077408,113440.0,113430.0,0.6388758]
[1752177458083,1.17877408,113440.0,113430.0,0.71010784]
[1752177458381,1.17977408,113440.0,113430.0,0.71010784]
[1752177458887,1.17877408,113440.0,113430.0,0.71010784]
[1752177459087,0.91423763,113440.0,113430.0,0.71010784]
[1752177459576,0.91223763,113440.0,113430.0,0.71010784]
[1752177459777,0.30635763,113440.0,113430.0,0.71010784]
[1752177459979,1.35242556,113440.0,113430.0,0.21621219]
[1752177460176,1.15259793,113440.0,113430.0,0.21621219]
[1752177460389,1.15359793,113440.0,113430.0,0.24116219]
[1752177460985,1.15359793,113440.0,113430.0,0.2174059]
[1752177462888,0.97741763,113440.0,113430.0,0.2174059]
[1752177463389,1.15359793,113440.0,113430.0,0.2174059]
[1752177464591,0.97741763,113440.0,113430.0,0.2174059]
[1752177464888,1.15359793,113440.0,113430.0,0.2174059]
[1752177465286,0.97741763,113440.0,113430.0,0.2174059]
[1752177465487,1.15359793,113440.0,113430.0,0.2174059]
[1752177466194,1.15359793,113440.0,113430.0,0.19995219]
[1752177466792,1.15359793,113440.0,113430.0,0.1761959]
[1752177467694,0.97741763,113440.0,113430.0,0.1761959]
[1752177468496,0.97741763,113440.0,113430.0,0.56075503]
[1752177468796,0.97741763,113440.0,113430.0,0.5369959]
[1752177469496,0.97741763,113440.0,113430.0,0.5619459]
[1752177470591,0.37125763,113440.0,113430.0,0.5619459]
[1752177470787,0.91351763,113440.0,113430.0,0.5781859]
[1752177470989,0.91351763,113440.0,113430.0,0.6084859]
[1752177471497,0.94501763,113440.0,113430.0,0.6084859]
[1752177472199,0.94301763,113440.0,113430.0,0.6084859]
[1752177473400,0.94281763,113440.0,113430.0,0.6084859]
[1752177473902,0.94181763,113440.0,113430.0,0.6084859]
[1752177480915,0.60126166,113440.0,113430.0,0.6084859]
[1752177481114,1.20606166,113440.0,113430.0,0.6084859]
[1752177481611,0.60126166,113440.0,113430.0,0.63224503]
[1752177481918,1.20606166,113440.0,113430.0,0.63224503]
[1752177482112,0.07249,113440.0,113430.0,0.63224503]
[1752177482416,0.88679583,113440.0,113430.0,0.92663086]
[1752177482612,0.002,113440.0,113430.0,1.79581669]
[1752177482816,0.002,113440.0,113430.0,1.90378455]
[1752177483013,0.002,113440.0,113430.0,1.63939872]
[1752177483512,0.26638583,113450.0,113440.0,0.1761803]
[1752177483513,0.002,113450.0,113440.0,0.1761803]
[1752177483704,0.002,113450.0,113440.0,1.27737327]
[1752177484015,0.26438583,113460.0,113450.0,0.1924048]
[1752177484215,0.26438583,113460.0,113450.0,2.08560063]
[1752177484512,0.26438583,113460.0,113450.0,1.8512148]
[1752177484815,0.56857166,113460.0,113450.0,1.8502148]
[1752177485016,0.30406529,113460.0,113450.0,1.8502148]
[1752177485419,0.30406529,113460.0,113450.0,1.8482148]
[1752177485809,0.30606529,113460.0,113450.0,1.8482148]
[1752177486119,0.30706529,113460.0,113450.0,1.8482148]
[1752177486616,0.0428,113460.0,113450.0,1.8482148]
[1752177486818,0.30706529,113460.0,113450.0,1.8482148]
[1752177487619,0.30706529,113460.0,113450.0,1.8492148]
[1752177488118,0.30706529,113460.0,113450.0,1.4884148]
[1752177488319,0.30706529,113460.0,113450.0,1.8492148]
[1752177488815,0.30706529,113460.0,113450.0,1.92081454]
[1752177492216,0.01842,113460.0,113450.0,1.92081454]
[1752177492517,0.003,113460.0,113450.0,1.92081454]
[1752177493113,0.003,113460.0,113450.0,2.20883833]
[1752177493315,0.002,113480.0,113470.0,0.2151038]
[1752177493520,0.002,113480.0,113470.0,1.8172838]
[1752177493717,0.002,113480.0,113470.0,2.2092838]
[1752177493917,0.26626529,113480.0,113470.0,2.2092838]
[1752177494115,0.28204529,113480.0,113470.0,2.2092838]
[1752177494317,0.30469529,113480.0,113470.0,2.2092838]
[1752177495221,0.30769529,113480.0,113470.0,2.2092838]
[1752177495523,0.30769529,113480.0,113470.0,0.9996038]
[1752177495720,0.30469529,113480.0,113470.0,0.9996038]
[1752177495928,0.30569529,113480.0,113470.0,0.9996038]
[1752177496825,0.04143,113480.0,113470.0,0.9996038]
[1752177497219,0.30569529,113480.0,113470.0,0.9996038]
[1752177497528,0.30569529,113480.0,113470.0,1.0006038]
[1752177498028,0.30569529,113480.0,113470.0,1.0016038]
[1752177499126,0.30469529,113480.0,113470.0,1.0026038]
[1752177500026,0.04043,113480.0,113470.0,1.0026038]
[1752177500825,0.30469529,113480.0,113470.0,1.0026038]
[1752177501426,0.30469529,113480.0,113470.0,0.6418038]
[1752177502427,0.30469529,113480.0,113470.0,0.6438038]
[1752177503130,0.30469529,113480.0,113470.0,0.5809038]
[1752177503424,0.37089529,113480.0,113470.0,0.5809038]
[1752177504423,0.10663,113480.0,113470.0,0.5809038]
[1752177504727,0.37089529,113480.0,113470.0,0.5809038]
[1752177507931,0.37089529,113480.0,113470.0,0.5799038]
[1752177508332,0.37153529,113480.0,113470.0,0.5799038]
[1752177508632,0.54765359,113480.0,113470.0,0.5789038]
[1752177508933,0.90845359,113480.0,113470.0,0.1791338]
[1752177511334,0.90845359,113480.0,113470.0,0.003]
[1752177511529,0.54765359,113480.0,113470.0,0.003]
[1752177511722,0.54765359,113480.0,113470.0,0.1791339]
[1752177514238,0.54765359,113480.0,113470.0,0.003]
[1752177515336,0.71651,113480.0,113470.0,0.1791339]
[1752177515536,1.15689359,113480.0,113470.0,0.2181039]
[1752177515736,0.98077529,113480.0,113470.0,0.2181039]
[1752177516135,1.15689359,113480.0,113470.0,0.2181039]
[1752177516335,0.98077529,113480.0,113470.0,0.2181039]
[1752177516825,1.15689359,113480.0,113470.0,0.2181039]
[1752177517029,1.51769359,113480.0,113470.0,0.2181039]
[1752177518230,0.37153529,113480.0,113470.0,0.2181039]
[1752177518635,0.98085529,113480.0,113470.0,0.6106039]
[1752177518938,0.98085529,113480.0,113470.0,0.24973145]
[1752177520028,0.98085529,113480.0,113470.0,0.26632939]
[1752177520531,1.15697359,113480.0,113470.0,0.26632939]
[1752177521132,0.98085529,113480.0,113470.0,0.26632939]
[1752177521334,1.15697359,113480.0,113470.0,0.26632939]
[1752177521529,0.98085529,113480.0,113470.0,0.26632939]
[1752177522343,1.15697359,113480.0,113470.0,0.26632939]
[1752177522532,0.98085529,113480.0,113470.0,0.26632939]
[1752177522733,1.15697359,113480.0,113470.0,0.26632939]
[1752177522934,0.98085529,113480.0,113470.0,0.26632939]
[1752177523739,0.37153529,113480.0,113470.0,0.62712939]
[1752177523938,0.98109529,113480.0,113470.0,0.62712939]
[1752177524545,1.15721359,113480.0,113470.0,0.62712939]
[1752177524741,0.2143494,113460.0,113450.0,0.03272699]
[1752177525046,0.2143804,113440.0,113430.0,0.04609]
[1752177525235,1.73192663,113440.0,113430.0,0.192286]
[1752177525540,1.53162134,113440.0,113430.0,0.01609]
[1752177525741,1.57566754,113440.0,113420.0,0.36784105]
[1752177525936,0.57411058,113430.0,113420.0,0.38393105]
[1752177526137,0.61632623,113430.0,113420.0,0.38393105]
[1752177527042,0.59787058,113430.0,113420.0,0.38393105]
[1752177527743,1.27717178,113430.0,113420.0,0.38593105]
[1752177528146,1.27917178,113430.0,113420.0,0.38393105]
[1752177528945,1.27917178,113430.0,113420.0,0.38493105]
[1752177529440,0.37400649,113430.0,113420.0,0.38493105]
[1752177529647,0.37400649,113430.0,113420.0,0.74473105]
[1752177529648,0.61292,113430.0,113420.0,0.74473105]
[1752177529846,0.00364,113430.0,113420.0,0.74473105]
[1752177530048,0.003,113430.0,113420.0,0.74473105]
[1752177530348,0.003,113430.0,113420.0,0.7277641]
[1752177530750,0.28234529,113430.0,113420.0,0.7277641]
[1752177530941,0.30546529,113430.0,113420.0,0.7277641]
[1752177531248,0.30546529,113430.0,113420.0,0.3669641]
[1752177531743,0.91582529,113430.0,113420.0,0.3669641]
[1752177531946,0.30546529,113430.0,113420.0,0.7277641]
[1752177532144,0.28234529,113430.0,113420.0,0.7277641]
[1752177532346,0.003,113430.0,113420.0,0.7277641]
[1752177533352,0.98364704,113440.0,113430.0,0.2168559]
[1752177533538,0.98428704,113440.0,113430.0,0.2806559]
[1752177534347,0.98428704,113440.0,113430.0,0.2816559]
[1752177534950,0.98528704,113440.0,113430.0,0.2806559]
[1752177536349,0.98728704,113440.0,113430.0,0.2806559]
[1752177536954,1.38018704,113440.0,113430.0,0.2806559]
[1752177537246,1.11592175,113440.0,113430.0,0.2806559]
[1752177537449,0.50532175,113440.0,113430.0,0.2806559]
[1752177537752,1.01974704,113440.0,113430.0,0.2806559]
[1752177537950,1.01986704,113440.0,113430.0,0.2806559]
[1752177538152,1.38066704,113440.0,113430.0,0.2806559]
[1752177538852,1.01986704,113440.0,113430.0,0.2806559]
[1752177539246,1.19604744,113440.0,113430.0,0.2806559]
[1752177540158,1.55684744,113440.0,113430.0,0.10446]
[1752177540450,1.55684744,113440.0,113430.0,0.2477559]
[1752177540650,0.1912759,113430.0,113420.0,0.04166]
[1752177540853,0.56673058,113430.0,113420.0,0.2495706]
[1752177541054,0.60007058,113430.0,113420.0,0.2495706]
[1752177541746,0.60007058,113430.0,113420.0,0.07336]
[1752177541943,0.77626648,113430.0,113420.0,0.07336]
[1752177542148,0.97648529,113430.0,113420.0,0.27325745]
[1752177542454,1.12268119,113430.0,113420.0,0.27325745]
[1752177542646,1.38694648,113430.0,113420.0,0.09704605]
[1752177542949,0.8594159,113430.0,113420.0,0.2495714]
[1752177543150,1.74874648,113430.0,113420.0,0.07336]
[1752177543355,1.38794648,113430.0,113420.0,0.07336]
[1752177543560,1.12368119,113430.0,113420.0,0.07336]
[1752177543746,0.51300119,113430.0,113420.0,0.2495714]
[1752177544052,1.38810648,113430.0,113420.0,0.2495714]
[1752177544352,1.38810648,113430.0,113420.0,0.07336]
[1752177544552,1.38826648,113430.0,113420.0,0.07336]
[1752177544852,1.38826648,113430.0,113420.0,0.2495714]
[1752177545651,0.77726648,113430.0,113420.0,0.2495714]
[1752177545846,0.33680529,113430.0,113420.0,0.6103714]
[1752177546050,0.91506529,113430.0,113420.0,0.6422714]
[1752177546246,1.09126109,113430.0,113420.0,0.66595745]
[1752177546556,1.09126109,113430.0,113420.0,0.6422714]
[1752177547054,1.09026109,113430.0,113420.0,0.6422714]
[1752177548455,1.09026109,113430.0,113420.0,0.6432714]
[1752177549254,1.09034109,113430.0,113420.0,0.66695745]
[1752177549445,1.12264109,113430.0,113420.0,0.66695745]
[1752177549756,1.38690638,113430.0,113420.0,0.6422714]
[1752177549956,1.38690638,113430.0,113420.0,0.2814714]
[1752177550154,1.38690638,113430.0,113420.0,0.30515745]
[1752177550556,1.38690638,113430.0,113420.0,0.30615745]
[1752177550756,1.12264109,113430.0,113420.0,0.30615745]
[1752177550958,1.12264109,113430.0,113420.0,0.2824714]
[1752177551160,1.12264109,113430.0,113420.0,0.30615745]
[1752177551361,1.38690638,113430.0,113420.0,0.09804605]
[1752177551751,1.38690638,113430.0,113420.0,0.07436]
[1752177552056,1.38690638,113430.0,113420.0,0.09804605]
[1752177552256,1.38694638,113430.0,113420.0,0.09804605]
[1752177552456,1.38694638,113430.0,113420.0,0.07436]
[1752177552653,1.41994638,113430.0,113420.0,0.07436]
[1752177553059,1.41994638,113430.0,113420.0,0.09804605]
[1752177553260,1.78174638,113430.0,113420.0,0.09804605]
[1752177553460,1.78230638,113430.0,113420.0,0.09804605]
[1752177553856,1.78230638,113430.0,113420.0,0.09704605]
[1752177554061,1.78330638,113430.0,113420.0,0.09704605]
[1752177554562,1.78230638,113430.0,113420.0,0.09804605]
[1752177554757,1.78130638,113430.0,113420.0,0.09804605]
[1752177555056,1.78130638,113430.0,113420.0,0.12970178]
[1752177555264,1.78118638,113430.0,113420.0,0.12970178]
[1752177555466,1.78118638,113430.0,113420.0,0.10601573]